bitfinex-derivatives/quotes_ETHF0:USTF0_20260226
["timestamp","ask_amount","ask_price","bid_price","bid_amount"]
[1772148780579,0.55025216,2031.1,2030.5,0.54095232]
[1772148784376,0.55025216,2030.9,2030.1,0.54095232]
[1772148784678,0.55025216,2030.7,2030.1,0.54095232]
[1772148785177,1.22304374,2030.6,2030.1,0.54095232]
[1772148785374,0.55025216,2030.5,2030.0,0.54095232]
[1772148791785,0.53934967,2030.7,2030.0,0.54095232]
[1772148792984,0.53934967,2030.9,2030.1,0.55088641]
[1772148800491,0.53934967,2030.7,2030.0,0.55088641]
[1772148800797,0.53934967,2030.4,2029.8,0.55088641]
[1772148802096,0.53934967,2030.7,2030.2,0.55088641]
[1772148802298,1.22304374,2031.0,2030.2,0.55088641]
[1772148802590,0.53934967,2030.9,2030.2,0.55088641]
[1772148811200,40.80603866,2031.3,2030.2,0.55088641]
[1772148811201,0.54538833,2031.3,2030.4,0.55088641]
[1772148820511,0.55407278,2031.2,2030.3,0.58231686]
[1772148821105,0.55407278,2031.2,2030.1,0.58231686]
[1772148821310,0.55407278,2030.9,2030.0,0.58231686]
[1772148821510,0.55407278,2030.8,2030.0,0.58231686]
[1772148829617,0.55407278,2031.2,2030.1,0.58231686]
[1772148833819,0.55407278,2031.2,2030.3,0.58231686]
[1772148841037,0.55407278,2031.2,2030.2,1.46853143]
[1772148841038,0.55407278,2031.2,2030.5,0.58231686]
[1772148865744,0.58302565,2031.3,2030.5,0.58231686]
[1772148865946,0.00603866,2031.3,2030.7,0.54562525]
[1772148866144,0.00154034,2031.3,2030.7,0.54562525]
[1772148867145,0.57852733,2031.3,2030.7,0.54562525]
[1772148867346,0.00154034,2031.3,2030.7,0.54562525]
[1772148868643,0.57852733,2031.3,2030.7,0.54562525]
[1772148872548,0.57698699,2031.0,2030.5,0.50755953]
[1772148874246,0.57698699,2031.2,2030.5,0.50755953]
[1772148874451,0.00154034,2031.3,2030.8,0.50570947]
[1772148874650,0.57698699,2031.4,2030.8,0.51150412]
[1772148875651,0.58203126,2031.4,2030.8,0.51150412]
[1772148881349,0.00504427,2031.4,2030.8,1.97926451]
[1772148881550,0.56129449,2031.6,2030.9,0.50793976]
[1772148881752,0.56129449,2031.6,2031.0,0.50793976]
[1772148882454,0.56565662,2031.6,2031.0,0.50793976]
[1772148885857,0.56129449,2031.4,2030.9,6.451]
[1772148886755,0.56129449,2031.4,2030.9,6.95972159]
[1772148889861,0.56129449,2031.4,2031.0,0.51947664]
[1772148890357,0.56129449,2031.4,2030.9,6.451]
[1772148890860,0.56129449,2031.4,2030.9,6.97245048]
[1772148892756,0.56129449,2031.4,2031.0,0.52145048]
[1772148893058,0.56129449,2031.4,2030.9,6.97245048]
[1772148894062,0.56129449,2031.4,2031.0,0.52903844]
[1772148894359,0.56129449,2031.4,2030.9,6.98003844]
[1772148895162,0.56129449,2031.4,2031.0,0.53426637]
[1772148898760,1.22157039,2031.5,2031.0,0.53426637]
[1772148898964,0.56129449,2031.4,2031.0,0.53426637]
[1772148899656,0.00436213,2031.6,2031.0,0.53426637]
[1772148899967,0.56129449,2031.9,2031.2,0.53844452]
[1772148900258,1.22157039,2032.2,2031.1,1.22157039]
[1772148900259,0.56129449,2032.1,2031.4,0.53844452]
[1772148901064,0.56537935,2032.1,2031.4,0.53844452]
[1772148902462,0.56129449,2031.9,2031.4,0.53844452]
[1772148902763,0.56129449,2031.5,2031.1,6.99479339]
[1772148902958,0.56129449,2031.3,2031.0,6.99479339]
[1772148904167,0.56129449,2031.4,2031.1,0.53295461]
[1772148904364,0.56129449,2031.5,2031.1,0.53295461]
[1772148905259,1.78286488,2031.6,2031.1,0.53295461]
[1772148905466,0.56129449,2031.7,2031.1,0.53295461]
[1772148905670,0.56129449,2031.7,2031.1,0.51840841]
[1772148905867,0.56129449,2031.5,2031.1,0.51840841]
[1772148908574,1.78286488,2031.4,2030.8,0.52196128]
[1772148908774,0.56129449,2031.3,2030.9,6.96516663]
[1772148909075,0.56129449,2031.3,2031.0,0.51342596]
[1772148909275,0.56129449,2031.4,2031.0,0.51342596]
[1772148910272,0.56129449,2031.4,2030.9,6.449]
[1772148910472,0.55447687,2031.3,2030.9,6.449]
[1772148910777,0.55447687,2031.3,2031.0,0.51369113]
[1772148913478,0.55447687,2031.3,2030.9,6.962363]
[1772148913977,0.55447687,2031.2,2030.9,6.449]
[1772148914580,0.55447687,2031.0,2030.5,0.513363]
[1772148914878,0.55447687,2030.8,2030.6,6.45]
[1772148915079,1.22157039,2031.1,2030.6,6.45]
[1772148915275,0.55447687,2031.0,2030.6,6.45]
[1772148915780,0.55447687,2031.0,2030.6,6.45591151]
[1772148915980,0.55447687,2031.0,2030.4,6.45]
[1772148916179,0.55447687,2031.0,2030.5,0.51076811]
[1772148916680,0.55447687,2031.0,2030.6,0.51076811]
[1772148916978,0.55447687,2031.0,2030.6,0.51554692]
[1772148918682,0.55447687,2031.0,2030.6,0.00477881]
[1772148918878,0.55447687,2031.0,2030.6,0.50775876]
[1772148920680,0.55447687,2031.0,2030.6,0.00477881]
[1772148921383,0.55447687,2030.8,2030.2,0.49542406]
[1772148921577,0.55447687,2030.8,2030.4,0.49542406]
[1772148922383,0.55447687,2030.8,2030.4,0.50143433]
[1772148925780,0.55447687,2030.8,2030.4,0.00601027]
[1772148926080,0.55447687,2030.4,2030.1,6.95465546]
[1772148926284,1.22157039,2030.7,2030.1,6.95465546]
[1772148926285,0.55447687,2030.6,2030.2,0.50365546]
[1772148926685,0.55447687,2030.6,2030.1,6.95465546]
[1772148926886,0.56016916,2030.6,2030.1,6.95990457]
[1772148927085,0.56016916,2030.6,2030.2,0.50498177]
[1772148929389,0.56016916,2030.6,2030.2,0.50536044]
[1772148930588,0.55447687,2030.8,2030.2,0.50536044]
[1772148931587,0.56019233,2030.8,2030.2,0.50536044]
[1772148939494,0.56019233,2030.8,2029.6,0.50282112]
[1772148939798,0.56019233,2030.8,2029.8,0.50282112]
[1772148940193,0.56019233,2030.8,2030.0,0.50255818]
[1772148940696,0.53600527,2030.9,2030.2,0.50255818]
[1772148940897,0.53600527,2030.9,2030.4,0.50255818]
[1772148941696,0.54155756,2030.9,2030.4,0.50255818]
[1772148942294,0.53600527,2031.0,2030.4,0.50255818]
[1772148943298,0.54192048,2031.0,2030.4,0.50255818]
[1772148947800,0.54192048,2031.0,2030.3,6.94141937]
[1772148948400,0.54192048,2031.0,2030.4,0.49041937]
[1772148954408,0.54192048,2031.0,2030.3,6.451]
[1772148955403,0.54192048,2031.0,2030.3,6.94639686]
[1772148955609,0.54192048,2031.0,2030.4,0.49539686]
[1772148961913,0.54192048,2031.0,2030.3,6.451]
[1772148962508,0.53600527,2030.9,2030.1,0.49618675]
[1772148962712,0.53600527,2030.9,2030.2,6.451]
[1772148964316,0.53600527,2030.9,2030.1,0.49557293]
[1772148964518,0.53600527,2030.9,2030.2,6.451]
[1772148966019,0.53600527,2030.9,2030.1,0.49557293]
[1772148966219,0.53600527,2030.9,2030.0,0.50410577]
[1772148967215,0.53600527,2030.6,2030.0,0.00497008]
[1772148968120,0.53600527,2030.5,2029.4,0.4991485]
[1772148968322,0.53600527,2030.5,2029.6,0.4991485]
[1772148968514,0.53600527,2030.5,2029.7,0.4991485]
[1772148969219,0.53600527,2030.5,2029.7,0.50277749]
[1772148974923,0.53600527,2030.5,2029.7,0.00362899]
[1772148975124,0.55695271,2030.3,2029.7,0.00362899]
[1772148986232,0.55695271,2030.0,2029.3,6.451]
[1772148986928,0.55695271,2030.0,2029.1,6.96947813]
[1772148987226,0.55695271,2030.0,2029.1,6.97530955]
[1772148987632,0.55695271,2030.0,2029.2,0.51847813]
[1772148990534,0.55695271,2029.7,2029.1,0.00583142]
[1772148990739,0.55695271,2029.4,2028.6,0.51861973]
[1772148991240,0.55695271,2029.1,2028.6,0.51861973]
[1772148991936,0.55695271,2029.1,2028.6,0.52427095]
[1772148991937,0.56161762,2029.1,2028.6,0.52427095]
[1772148993443,0.00466491,2029.1,2028.6,0.52427095]
[1772148994544,0.56161762,2029.1,2028.6,0.52427095]
[1772148995437,0.00466491,2029.1,2028.6,0.52427095]
[1772148996244,0.55695271,2029.3,2028.6,0.52427095]
[1772148997136,0.56108583,2029.3,2028.6,0.52427095]
[1772149002845,0.56108583,2029.3,2028.6,0.00565122]
[1772149003051,0.56247958,2028.9,2027.9,0.51475025]
[1772149003544,0.56247958,2028.9,2028.1,0.51475025]
[1772149003749,0.56247958,2028.9,2028.3,0.51475025]
[1772149003945,0.56247958,2028.9,2028.3,0.52013386]
[1772149015363,0.56247958,2028.7,2027.9,0.50487329]
[1772149016363,0.56247958,2028.7,2027.9,0.50856248]
[1772149020357,0.56247958,2028.7,2028.1,0.50166266]
[1772149020558,0.56247958,2028.9,2028.3,0.50166266]
[1772149021057,0.56247958,2029.1,2028.5,0.50219065]
[1772149024468,0.5666127,2029.3,2028.7,0.50357491]
[1772149029967,0.5666127,2029.3,2028.4,0.24649]
[1772149030169,0.57431513,2029.0,2028.4,6.452]
[1772149030668,0.57431513,2029.0,2028.4,6.95385997]
[1772149032473,0.57431513,2028.8,2028.3,6.452]
[1772149033075,0.57431513,2028.8,2028.3,6.94372422]
[1772149033976,0.57431513,2028.8,2028.3,6.452]
[1772149034972,0.57431513,2028.8,2028.2,0.49172422]
[1772149035177,0.57431513,2028.8,2028.2,6.94372422]
[1772149038483,0.57431513,2028.8,2028.3,0.49196084]
[1772149041681,1.22443498,2029.1,2028.3,0.49196084]
[1772149041884,0.57431513,2029.0,2028.3,0.49196084]
[1772149044586,0.57431513,2028.8,2028.3,0.49196084]
[1772149048082,1.22443498,2029.1,2028.3,0.49196084]
[1772149048286,0.57431513,2029.0,2028.3,0.49196084]
[1772149053595,0.57844825,2029.3,2028.5,0.48297498]
[1772149053796,0.57844825,2029.3,2028.7,0.48297498]
[1772149053997,0.57844825,2029.3,2028.7,6.93597498]
[1772149055096,0.57431513,2029.2,2028.5,6.453]
[1772149060003,0.57431513,2029.2,2028.5,6.93582921]
[1772149062305,0.56739077,2028.9,2028.3,6.453]
[1772149064003,0.56739077,2028.9,2028.1,0.5574454]
[1772149065102,0.56739077,2028.9,2027.9,0.00368919]
[1772149065103,0.56739077,2028.9,2027.9,0.56113459]
[1772149065304,0.56739077,2028.6,2027.9,0.56113459]
[1772149066002,0.56739077,2028.6,2028.0,0.5574454]
[1772149070103,0.56739077,2029.1,2028.0,0.5574454]
[1772149075607,0.56739077,2028.8,2028.0,0.5574454]
[1772149077002,0.56739077,2029.1,2028.0,0.5574454]
[1772149082610,0.57152389,2029.3,2028.2,0.5574454]
[1772149082806,0.57152389,2029.3,2028.1,0.24652]
[1772149082807,0.56739077,2029.2,2028.4,0.5574454]
[1772149083011,0.56739077,2029.2,2028.5,6.453]
[1772149083613,0.56739077,2029.2,2028.2,0.5574454]
[1772149083811,0.56739077,2029.2,2028.4,0.5574454]
[1772149087916,0.56739077,2028.9,2028.1,0.5574454]
[1772149097930,0.52596467,2028.6,2027.9,0.5446092]
[1772149102522,0.52596467,2029.1,2027.9,0.5446092]
[1772149109238,0.52596467,2029.1,2028.0,0.54092001]
[1772149113243,0.52596467,2029.0,2028.1,0.54092001]
[1772149116048,0.52596467,2029.0,2028.3,0.54092001]
[1772149125459,0.55156077,2029.3,2028.5,0.57025262]
[1772149125661,0.55156077,2029.3,2028.7,0.57025262]
[1772149127155,0.54742765,2029.6,2028.7,0.57025262]
[1772149127456,0.54742765,2029.6,2028.9,0.57025262]
[1772149127650,0.54742765,2029.7,2029.1,0.57025262]
[1772149128258,0.55246671,2029.7,2029.1,0.57025262]
[1772149140162,0.00503906,2029.7,2029.1,0.57025262]
[1772149140367,0.54742765,2030.0,2029.3,0.57025262]
[1772149140659,0.54742765,2030.0,2029.5,0.57025262]
[1772149141261,0.55136891,2030.0,2029.5,0.004587]
[1772149141969,0.55136891,2030.0,2029.5,0.57483962]
[1772149142367,0.55136891,2030.0,2029.5,0.004587]
[1772149143068,0.55136891,2030.0,2029.5,0.57483962]
[1772149146370,0.54742765,2030.3,2029.5,0.57483962]
[1772149146567,0.03306617,2030.3,2029.6,0.57025262]
[1772149146871,0.03306617,2030.3,2029.8,0.57025262]
[1772149147570,0.03935682,2030.3,2029.8,0.57025262]
[1772149149466,0.00629065,2030.3,2029.8,0.57025262]
[1772149149772,0.56720716,2030.9,2030.2,0.53492307]
[1772149149964,0.56720716,2030.9,2030.4,0.53492307]
[1772149150468,0.56720716,2030.4,2030.0,6.98892307]
[1772149150766,0.57199589,2030.4,2030.0,6.98892307]
[1772149151279,0.57199589,2030.4,2030.0,0.53492307]
[1772149151570,0.56720716,2030.3,2030.0,6.98892307]
[1772149151965,0.57199589,2030.4,2030.1,0.53492307]
[1772149152163,0.57199589,2030.4,2030.0,6.98892307]
[1772149152874,0.57199589,2030.4,2030.1,0.53492307]
[1772149153779,0.00478873,2030.4,2030.1,0.53492307]
[1772149155876,0.57199589,2030.4,2030.1,0.53492307]
[1772149156275,0.57199589,2030.4,2030.0,6.98892307]
[1772149156476,0.57199589,2030.4,2030.1,0.53492307]
[1772149158377,0.00478873,2030.4,2030.1,0.53492307]
[1772149162878,0.57199589,2030.4,2030.1,0.53492307]
[1772149163077,0.56720716,2030.3,2029.9,0.53492307]
[1772149163280,0.56720716,2030.3,2030.0,6.98892307]
[1772149163480,1.79655864,2030.4,2030.0,6.98892307]
[1772149163677,1.22456275,2030.2,2029.8,0.53492307]
[1772149163883,1.79176991,2030.2,2029.8,0.53492307]
[1772149164378,1.22456275,2030.0,2029.8,0.53492307]
[1772149164680,0.56720716,2029.9,2029.6,6.75510374]
[1772149165578,0.56720716,2029.9,2029.5,0.30662315]
[1772149165884,1.79176991,2029.8,2029.5,6.454]
[1772149166682,1.79176991,2029.8,2029.5,6.45785978]
[1772149166882,1.79176991,2029.8,2029.5,6.99278285]
[1772149168283,1.79176991,2029.8,2029.5,6.45785978]
[1772149168983,0.60354157,2029.7,2029.5,6.45785978]
[1772149169282,1.82589861,2029.8,2029.5,6.45785978]
[1772149171080,1.82589861,2029.8,2029.5,6.99278285]
[1772149171284,0.60185144,2030.0,2029.6,0.53492307]
[1772149171487,0.57199589,2030.4,2029.8,0.53492307]
[1772149171780,0.56720716,2030.4,2029.5,0.25020978]
[1772149171989,0.56720716,2030.4,2028.9,6.366]
[1772149171990,6.06377,2028.4,2025.9,6.56364]
[1772149172282,1.79176991,2027.4,2026.8,0.53492307]
[1772149172482,1.22456275,2027.8,2026.8,0.53492307]
[1772149172686,0.56720716,2028.1,2027.2,0.53492307]
[1772149172884,0.56720716,2027.8,2027.3,0.53492307]
[1772149173184,0.56720716,2027.4,2027.0,0.53492307]
[1772149173383,0.56720716,2027.8,2027.0,0.53492307]
[1772149173887,0.56720716,2027.7,2027.0,0.53492307]
[1772149174082,0.56720716,2027.7,2027.1,0.53492307]
[1772149175487,40.80464576,2028.1,2027.1,0.53492307]
[1772149175488,0.00464576,2028.1,2027.1,0.53492307]
[1772149176384,0.56720716,2028.6,2027.3,0.53492307]
[1772149176588,0.56720716,2028.6,2027.5,0.53492307]
[1772149177485,0.00363692,2028.6,2027.5,0.53492307]
[1772149182087,0.89080726,2029.1,2027.7,0.86267998]
[1772149182287,0.89080726,2029.1,2027.9,0.86267998]
[1772149183293,0.00456737,2029.1,2027.9,0.86267998]
[1772149186193,0.89080726,2029.0,2028.1,0.86267998]
[1772149188294,0.89080726,2028.8,2027.6,0.86267998]
[1772149190298,0.89080726,2028.6,2027.6,0.86267998]
[1772149195805,0.89080726,2028.8,2027.8,0.86267998]
[1772149196601,0.89080726,2028.8,2028.0,0.86267998]
[1772149202510,0.89537463,2029.1,2028.2,0.86267998]
[1772149205316,0.00456737,2029.1,2028.2,0.86267998]
[1772149206517,0.00456737,2029.1,2028.4,0.86267998]
[1772149206718,0.89080726,2029.8,2028.6,0.86267998]
[1772149207617,0.8969713,2029.8,2028.6,0.86850603]
[1772149214419,0.74252373,2029.6,2028.6,0.86850603]
[1772149214721,0.74252373,2029.6,2028.6,0.00582605]
[1772149214922,41.54252373,2029.6,2028.6,0.00582605]
[1772149215223,0.74252373,2029.5,2028.6,0.00582605]
[1772149216320,0.74252373,2029.3,2028.6,0.00582605]
[1772149216823,7.43652373,2029.3,2028.6,0.00582605]
[1772149217224,0.74252373,2029.2,2028.4,0.80728261]
[1772149217423,0.74252373,2029.2,2028.3,0.80728261]
[1772149218226,0.74252373,2029.2,2028.3,0.81210929]
[1772149219621,0.74252373,2029.2,2028.3,0.00482668]
[1772149223430,0.74252373,2029.0,2028.3,0.00482668]
[1772149223731,0.74252373,2029.0,2027.5,0.80728261]
[1772149224129,0.74252373,2028.8,2027.5,0.80728261]
[1772149224731,0.74252373,2028.8,2027.5,0.81078505]
[1772149242545,0.74252373,2028.8,2027.9,0.6898687]
[1772149247652,0.74252373,2028.8,2028.1,0.6898687]
[1772149250450,0.74252373,2028.8,2028.3,0.6898687]
[1772149254756,0.7078143,2028.7,2028.0,0.6898687]
[1772149257958,0.7078143,2028.7,2027.9,0.6898687]
[1772149261562,0.7078143,2028.5,2027.6,0.6898687]
[1772149262762,0.7078143,2028.5,2027.6,1.91470312]
[1772149262965,0.7078143,2028.5,2027.7,0.6898687]
[1772149264564,0.7078143,2028.5,2027.9,0.6898687]
[1772149275075,0.7078143,2028.5,2027.8,0.62738052]
[1772149275374,0.7078143,2028.5,2027.7,0.62738052]
[1772149281782,0.7078143,2028.5,2027.6,0.62738052]
[1772149282385,0.6155558,2028.3,2027.6,0.62738052]
[1772149282587,0.62109189,2028.3,2027.6,0.62738052]
[1772149286389,0.62109189,2028.3,2027.5,0.63088296]
[1772149286784,0.62109189,2028.3,2027.5,0.00350244]
[1772149286991,0.6155558,2028.1,2027.5,0.00350244]
[1772149290893,0.6155558,2027.9,2027.1,0.62738052]
[1772149291795,0.6155558,2027.9,2027.1,0.63226867]
[1772149296000,0.6155558,2027.9,2027.1,0.00488815]
[1772149296299,0.6155558,2027.9,2026.7,0.24668]
[1772149296300,0.56527602,2027.8,2026.7,0.61082111]
[1772149296497,0.56527602,2027.6,2026.7,0.61082111]
[1772149297199,0.56527602,2027.6,2026.7,0.0051034]
[1772149300399,0.54865511,2027.4,2026.2,0.56859759]
[1772149300599,0.54865511,2027.3,2026.2,0.56859759]
[1772149300800,0.54865511,2027.2,2026.2,0.56859759]
[1772149301197,0.54865511,2027.2,2026.2,0.57470001]
[1772149302398,0.54865511,2027.1,2026.2,0.57470001]
[1772149302702,0.54865511,2027.1,2026.2,0.00610242]
[1772149302902,0.54865511,2026.8,2026.2,0.00610242]
[1772149303104,0.55404021,2026.8,2026.2,0.00610242]
[1772149303702,7.10004021,2026.8,2026.2,0.00610242]
[1772149303903,0.54865511,2026.7,2026.2,0.00610242]
[1772149305705,0.54865511,2026.7,2026.2,0.57470001]
[1772149306506,0.54865511,2026.7,2026.2,0.00610242]
[1772149306905,0.54865511,2026.7,2025.9,0.56859759]
[1772149308005,0.54865511,2026.7,2025.9,0.57329984]
[1772149312402,0.54865511,2026.7,2025.9,0.00470225]
[1772149312608,0.54865511,2026.7,2025.9,0.57329984]
[1772149316608,0.0053851,2026.8,2026.1,0.56859759]
[1772149317306,0.55404021,2026.8,2026.1,0.56859759]
[1772149317507,0.55404021,2026.8,2026.0,0.56859759]
[1772149323908,0.54865511,2026.7,2025.9,0.57329984]
[1772149325215,0.54865511,2026.6,2025.9,0.57329984]
[1772149326306,0.54865511,2026.6,2025.9,0.00470225]
[1772149327813,0.54865511,2026.6,2025.7,13.35572669]
[1772149328715,0.54865511,2026.6,2025.7,13.35999209]
[1772149329217,0.54865511,2026.6,2025.7,13.92858968]
[1772149330119,0.54865511,2026.6,2025.8,0.56471033]
[1772149334316,0.54865511,2026.6,2025.9,0.56471033]
[1772149336618,0.56115973,2026.8,2025.9,0.56471033]
[1772149342725,0.56115973,2026.8,2026.1,0.56471033]
[1772149343831,0.0053851,2026.8,2026.1,0.56471033]
[1772149344032,2.74175483,2027.5,2026.4,0.56471033]
[1772149344033,0.55577463,2027.2,2026.4,0.56471033]
[1772149345129,0.56020239,2027.2,2026.4,0.56471033]
[1772149349437,0.00442776,2027.2,2026.4,0.56471033]
[1772149353038,0.56020239,2027.2,2026.4,0.56471033]
[1772149358043,0.56389884,2027.1,2026.4,0.56471033]
[1772149362949,0.57037644,2027.4,2027.0,0.5671949]
[1772149363147,0.57037644,2027.4,2026.9,0.5671949]
[1772149364049,0.57549459,2027.4,2027.0,0.5671949]
[1772149365253,0.56926913,2027.4,2027.0,0.5671949]
[1772149367547,0.56926913,2027.4,2026.8,0.5671949]
[1772149368851,0.56926913,2027.4,2027.0,0.5671949]
[1772149369157,0.00511815,2027.4,2027.0,0.5671949]
[1772149370758,0.57549459,2027.4,2027.0,0.5671949]
[1772149374962,0.57549459,2027.4,2026.8,0.5671949]
[1772149379364,0.57549459,2027.4,2026.7,0.5671949]
[1772149381570,0.57037644,2027.3,2026.6,0.2467]
[1772149381870,0.57037644,2027.3,2026.6,0.8138949]
[1772149382473,1.22668094,2027.2,2026.4,0.5671949]
[1772149382773,1.22668094,2027.0,2026.2,0.5671949]
[1772149382972,0.57037644,2026.9,2026.2,0.5671949]
[1772149383473,0.57037644,2027.2,2026.7,0.5671949]
[1772149383775,0.57037644,2027.2,2026.4,0.5671949]
[1772149385572,0.57037644,2027.1,2026.6,0.5671949]
[1772149391175,0.57037644,2027.1,2026.4,0.55230196]
[1772149394475,0.57666199,2026.8,2026.0,0.55230196]
[1772149405587,0.57666199,2026.4,2025.8,0.55230196]
[1772149410985,0.57666199,2026.4,2025.7,13.91229405]
[1772149411191,0.57666199,2026.4,2025.8,0.55230196]
[1772149411391,0.57666199,2026.3,2025.7,13.35999209]
[1772149417191,0.57666199,2026.3,2025.7,0.0042654]
[1772149420996,0.57666199,2026.3,2025.7,0.52966182]
[1772149440622,7.25280156,2026.4,2025.7,0.52966182]
[1772149440823,7.25280156,2026.5,2025.7,0.52966182]
[1772149442518,0.53280156,2026.4,2025.7,0.52966182]
[1772149442821,7.25280156,2026.5,2025.8,0.52539642]
[1772149443223,0.53280156,2026.5,2025.8,0.52539642]
[1772149449322,0.53280156,2026.7,2025.8,0.52539642]
[1772149449527,7.27380156,2026.7,2026.0,0.52539642]
[1772149452627,0.56648235,2026.6,2026.0,0.52539642]
[1772149455030,0.56648235,2026.6,2025.9,0.24679]
[1772149455329,0.56648235,2026.6,2025.8,0.57230295]
[1772149462531,0.56648235,2026.6,2025.7,0.0042654]
[1772149462832,0.56648235,2026.5,2025.8,0.57230295]
[1772149469837,0.56648235,2026.9,2025.9,0.57230295]
[1772149470039,0.56648235,2026.9,2026.0,0.57230295]
[1772149471744,0.56648235,2026.7,2025.9,0.57230295]
[1772149474645,0.56648235,2026.9,2025.9,0.57230295]
[1772149475345,0.56648235,2026.9,2026.1,0.57230295]
[1772149475542,0.56648235,2026.9,2026.2,0.24675]
[1772149475751,0.56648235,2027.3,2026.3,0.57230295]
[1772149479253,0.56648235,2027.3,2026.6,0.58179553]
[1772149483057,0.56648235,2027.3,2026.8,0.56870625]
[1772149486166,0.56648235,2027.3,2026.6,0.56870625]
[1772149500465,0.56648235,2027.3,2026.8,0.56870625]
[1772149502770,0.56648235,2027.3,2026.6,0.56870625]
[1772149502966,0.53704454,2027.2,2026.4,0.56870625]
[1772149503466,0.53704454,2027.0,2026.2,0.56870625]
[1772149503965,0.53704454,2027.0,2026.0,6.46]
[1772149504271,0.53704454,2026.6,2026.1,0.56870625]
[1772149506773,0.53704454,2026.6,2026.0,0.56870625]
[1772149507670,0.53704454,2026.6,2025.9,13.4428759]
[1772149507870,0.53704454,2026.6,2025.9,14.01158215]
[1772149508974,0.53704454,2026.6,2026.0,0.56870625]
[1772149510875,0.53704454,2026.6,2025.9,14.00794411]
[1772149511977,0.53704454,2026.6,2025.9,13.4428759]
[1772149512678,0.53704454,2026.6,2025.9,14.00794411]
[1772149513578,0.53704454,2026.6,2026.0,0.56506821]
[1772149515284,0.53704454,2026.6,2026.1,0.56506821]
[1772149515582,0.55190641,2027.0,2026.3,0.56506821]
[1772149518389,0.55190641,2026.7,2026.0,0.56506821]
[1772149522689,0.55190641,2026.7,2026.1,0.56506821]
[1772149523888,0.55190641,2026.7,2026.0,0.56506821]
[1772149527400,0.55190641,2026.7,2025.9,14.00794411]
[1772149529700,0.55190641,2026.5,2025.9,13.4428759]
[1772149533207,0.55190641,2026.5,2025.9,14.00794411]
[1772149535710,0.55190641,2026.5,2026.0,0.56506821]
[1772149547221,0.55190641,2026.5,2025.9,13.4428759]
[1772149547519,0.55190641,2026.5,2025.9,13.97905566]
[1772149548822,0.55190641,2026.5,2026.0,0.53617976]
[1772149553525,0.55190641,2026.5,2025.9,0.53617976]
[1772149560925,0.53583483,2027.0,2025.9,0.53617976]
[1772149561129,0.53583483,2026.9,2025.9,0.53617976]
[1772149571838,0.53583483,2026.9,2026.0,0.5505434]
[1772149575234,0.5513892,2027.0,2026.3,0.5505434]
[1772149575444,0.5513892,2027.1,2026.3,0.5505434]
[1772149578941,0.5513892,2027.1,2026.4,0.5505434]
[1772149583852,0.5513892,2027.3,2026.6,0.5505434]
[1772149584032,0.55650735,2027.4,2026.6,0.5505434]
[1772149597551,0.55650735,2027.4,2026.7,0.24669]
[1772149597756,0.55650735,2027.4,2026.8,0.55637989]
[1772149600757,6.736,2028.0,2027.2,0.53497709]
[1772149600964,0.56037475,2027.9,2027.2,0.53497709]
[1772149601263,6.737,2028.3,2027.5,0.53497709]
[1772149601264,0.56037475,2028.0,2027.5,0.53497709]
[1772149601865,0.56463238,2028.0,2027.5,0.5408528]
[1772149605067,0.56463238,2028.0,2027.5,0.00587571]
[1772149605368,0.56037475,2027.7,2027.2,0.53497709]
[1772149606270,0.56037475,2027.7,2027.2,0.54003175]
[1772149606568,0.56037475,2027.9,2027.2,0.54003175]
[1772149606767,1.22966407,2028.0,2027.3,0.53497709]
[1772149606768,0.00425763,2028.0,2027.3,0.53497709]
[1772149607173,0.00425763,2028.0,2027.5,0.53497709]
[1772149607667,0.56037475,2028.2,2027.5,0.53497709]
[1772149607858,0.56037475,2028.2,2027.4,1.22540644]
[1772149607859,0.56037475,2028.5,2027.9,0.53497709]
[1772149608668,0.56492678,2028.5,2027.9,0.53497709]
[1772149609069,0.56037475,2028.3,2027.7,0.53497709]
[1772149617668,0.56037475,2027.8,2027.2,0.54003175]
[1772149619368,1.22540644,2028.3,2027.4,0.53497709]
[1772149619576,0.56037475,2028.2,2027.6,0.53497709]
[1772149639491,0.56084062,2027.8,2027.2,0.00505466]
[1772149639690,0.56084062,2027.6,2027.2,0.00505466]
[1772149640091,0.56084062,2027.6,2027.0,0.53692492]
[1772149641091,0.56084062,2027.6,2027.0,0.54186676]
[1772149644492,0.56084062,2028.0,2027.2,0.53692492]
[1772149645591,0.56084062,2027.8,2027.2,0.53692492]
[1772149650297,0.56084062,2027.6,2027.0,0.54186676]
[1772149650898,0.56084062,2027.6,2027.0,0.00494184]
[1772149651397,0.56084062,2027.4,2027.0,0.00494184]
[1772149651590,0.56084062,2027.4,2026.9,0.53692492]
[1772149652600,0.56084062,2027.4,2026.9,0.54232453]
[1772149657907,0.56084062,2027.4,2026.9,0.00539961]
[1772149658210,0.52503666,2027.2,2026.6,0.56518189]
[1772149659012,0.52503666,2027.2,2026.6,0.57071769]
[1772149659807,0.52503666,2027.2,2026.6,0.0055358]
[1772149660213,0.52953776,2027.0,2026.6,0.0055358]
[1772149660414,0.53535563,2027.0,2026.4,0.54853295]
[1772149661310,0.53535563,2027.0,2026.4,0.55276331]
[1772149661809,0.53535563,2027.0,2026.4,0.00423036]
[1772149666823,0.53535563,2027.0,2026.4,0.55276331]
[1772149669321,0.53535563,2027.0,2026.4,0.00423036]
[1772149684727,0.53535563,2027.0,2026.4,0.55276331]
[1772149700541,0.53535563,2027.0,2026.4,0.00423036]
[1772149700743,0.53535563,2027.0,2026.1,0.54206223]
[1772149701742,0.53535563,2027.0,2026.1,0.54761774]
[1772149706652,0.53535563,2027.0,2026.3,0.54206223]
[1772149723262,0.53535563,2027.0,2026.5,0.57559789]
[1772149739984,0.53535563,2027.0,2026.3,0.57559789]
[1772149740188,0.53526002,2027.0,2026.6,0.57559789]
[1772149745597,0.52944215,2027.1,2026.6,0.57559789]
[1772149745891,0.52944215,2027.1,2026.7,0.57559789]
[1772149746695,0.53440811,2027.1,2026.7,0.57559789]
[1772149748398,0.00496596,2027.1,2026.7,0.57559789]
[1772149748600,0.52944215,2027.3,2026.7,0.57559789]
[1772149748802,0.52944215,2027.5,2026.8,0.57559789]
[1772149748996,7.72667551,2027.9,2027.0,0.57559789]
[1772149749201,0.52944215,2027.8,2027.0,0.57559789]
[1772149749701,0.53481795,2027.8,2027.0,0.57559789]
[1772149750600,0.53481795,2027.8,2027.4,0.56545149]
[1772149753103,0.53481795,2027.8,2027.2,0.56545149]
[1772149760107,0.53481795,2027.8,2027.4,0.56545149]
[1772149764006,0.0053758,2027.8,2027.4,0.56545149]
[1772149765702,0.55953737,2027.8,2027.4,0.56545149]
[1772149765907,0.55953737,2027.8,2026.7,6.0687]
[1772149765908,0.55416157,2027.2,2026.1,0.00555551]
[1772149766107,0.55416157,2026.5,2026.1,0.00555551]
[1772149770507,0.55416157,2026.5,2025.8,0.56545149]
[1772149770908,0.55416157,2026.3,2025.6,0.56545149]
[1772149771407,0.55985381,2026.3,2025.6,0.57051904]
[1772149779016,0.55645935,2026.1,2025.6,0.00506755]
[1772149779221,0.56215159,2026.3,2025.9,0.56876511]
[1772149782416,0.57662715,2026.5,2026.1,0.56846441]
[1772149782717,0.57662715,2026.5,2026.0,0.56846441]